bitfinex/quotes_ETHUSD_20250611
["timestamp","ask_amount","ask_price","bid_price","bid_amount"]
[1749649668107,1.5442,2788.7,2786.8,11.6056]
[1749649668264,0.1792,2787.2,2787.0,10.0]
[1749649668460,0.1792,2787.2,2787.1,1.6013]
[1749649669273,1.5442,2788.7,2787.1,11.6013]
[1749649669474,0.1792,2787.5,2787.3,10.0]
[1749649669689,0.1792,2787.5,2787.4,11.5486]
[1749649669888,0.1792,2787.5,2787.4,1.5486]
[1749649670263,0.1792,2787.9,2787.5,1.5486]
[1749649670464,0.1792,2787.9,2787.6,1.5636]
[1749649670807,0.1792,2787.9,2787.7,10.0]
[1749649670970,0.1792,2787.9,2787.8,11.5636]
[1749649671171,0.1792,2787.9,2787.8,10.13012386]
[1749649671487,0.04,2788.9,2787.9,1.5043]
[1749649672064,0.1792,2788.0,2787.9,1.5043]
[1749649672262,0.04,2788.9,2787.9,1.5043]
[1749649672490,0.1792,2788.1,2787.9,1.5043]
[1749649673006,0.04,2788.9,2788.0,1.5017]
[1749649673217,0.1792,2788.3,2787.9,10.0]
[1749649673396,0.1792,2788.3,2788.0,1.5017]
[1749649673583,0.04,2788.9,2788.0,1.5017]
[1749649674419,1.5748,2788.8,2788.0,1.5017]
[1749649674824,0.1792,2788.0,2787.6,1.5219]
[1749649675110,1.5748,2788.8,2787.6,1.5219]
[1749649675267,1.17449239,2788.7,2787.6,1.5219]
[1749649675685,1.5748,2788.8,2787.6,1.5219]
[1749649675888,0.1792,2787.9,2787.6,1.5219]
[1749649676107,0.1792,2787.9,2787.5,10.0]
[1749649676269,0.04,2788.9,2787.6,1.6571]
[1749649676717,0.04,2788.9,2787.9,1.6031]
[1749649677009,0.1792,2788.1,2788.0,0.00101547]
[1749649677983,0.1792,2788.3,2788.1,1.5182]
[1749649678915,0.1792,2788.3,2788.1,1.74414965]
[1749649679686,0.04279223,2788.3,2788.2,10.0]
[1749649679894,0.04279223,2788.3,2788.1,1.74414965]
[1749649680093,0.04,2788.9,2788.2,11.579]
[1749649680288,0.1792,2788.5,2788.2,1.579]
[1749649680610,0.04,2788.9,2788.2,1.579]
[1749649680939,0.1792,2788.3,2788.2,1.579]
[1749649682507,0.1792,2788.3,2787.5,0.1792]
[1749649682710,0.04,2788.9,2787.9,1.5965]
[1749649682912,0.1792,2788.0,2787.9,1.5965]
[1749649683106,0.04,2788.9,2788.0,10.0]
[1749649683316,0.04,2788.9,2788.2,10.0]
[1749649683509,0.1792,2788.3,2788.2,11.5611]
[1749649683857,0.1792,2788.3,2788.2,1.5611]
[1749649684713,0.1792,2788.3,2787.9,1.65084337]
[1749649684922,0.04,2788.9,2787.9,1.65084337]
[1749649684923,0.1792,2788.2,2788.0,20.13012386]
[1749649685594,0.1792,2788.2,2788.1,1.6566]
[1749649685922,0.1792,2788.2,2787.9,0.47940144]
[1749649685923,1.5069,2788.8,2787.9,0.00184337]
[1749649686097,1.5069,2788.8,2787.8,1.6566]
[1749649686098,0.1792,2787.9,2787.8,1.6566]
[1749649687026,0.04,2788.9,2788.1,3.58666846]
[1749649687197,0.04,2788.9,2788.2,0.35866685]
[1749649687694,1.5697,2788.8,2788.0,1.5413]
[1749649688115,1.5697,2788.8,2787.0,0.55]
[1749649688116,1.5697,2788.8,2787.5,1.5423]
[1749649689621,1.5697,2788.8,2787.6,10.0]
[1749649690814,1.5697,2788.8,2787.7,0.00688554]
[1749649692063,1.5697,2788.8,2787.8,1.5715]
[1749649692216,1.5697,2788.8,2787.9,10.0]
[1749649694456,1.5697,2788.8,2787.5,11.6261]
[1749649694630,1.5697,2788.8,2787.5,1.6261]
[1749649695860,1.5697,2788.8,2787.7,10.13012386]
[1749649696050,1.5697,2788.8,2787.8,10.0]
[1749649696461,1.5697,2788.8,2787.5,11.6261]
[1749649696837,0.1792,2787.8,2787.5,11.6261]
[1749649697214,0.1792,2787.8,2787.5,15.21348733]
[1749649697382,1.5697,2788.8,2787.5,15.21348733]
[1749649697383,1.5697,2788.8,2787.9,1.5988]
[1749649697538,0.04,2788.9,2788.2,20.13012386]
[1749649697539,0.1792,2788.3,2788.2,20.13012386]
[1749649697738,0.04,2788.9,2788.3,10.0]
[1749649697937,0.04,2788.9,2788.6,10.13012386]
[1749649698179,0.1792,2788.6,2787.9,1.5988]
[1749649698478,0.1792,2788.4,2788.1,10.0]
[1749649698677,0.1792,2788.3,2787.9,1.5988]
[1749649698883,0.1792,2788.0,2787.9,1.5988]
[1749649700182,1.564,2788.9,2787.9,5.66328062]
[1749649700365,0.1792,2788.3,2788.0,0.47755807]
[1749649700679,0.1792,2788.3,2788.0,10.47755807]
[1749649700980,1.564,2788.9,2787.5,1.5205]
[1749649701277,0.1792,2787.9,2787.5,1.5205]
[1749649701484,1.564,2788.9,2787.5,1.5205]
[1749649701485,1.6296,2788.3,2787.5,1.5205]
[1749649701638,0.1792,2787.6,2787.3,0.36508691]
[1749649701838,1.6296,2788.3,2787.2,12.01061503]
[1749649702039,0.04,2788.9,2787.0,1.303]
[1749649702040,1.5949,2788.4,2787.0,1.303]
[1749649702281,1.5949,2788.2,2786.6,11.87151503]
[1749649702435,0.1792,2786.9,2786.6,11.87151503]
[1749649702639,1.5949,2787.3,2786.4,0.57888202]
[1749649702640,0.1792,2786.6,2786.4,0.22392026]
[1749649702878,1.5949,2787.3,2786.3,12.2138]
[1749649702879,0.1792,2786.5,2786.3,15.80276485]
[1749649703091,1.5949,2787.3,2786.5,0.47755807]
[1749649703310,0.1792,2786.5,2786.4,10.2995918]
[1749649703599,1.5949,2787.3,2786.4,0.2995918]
[1749649703800,0.1792,2786.5,2786.4,0.2995918]
[1749649703958,0.1792,2786.5,2786.4,10.2995918]
[1749649704153,0.1792,2786.5,2786.4,0.2995918]
[1749649704384,0.1792,2786.5,2786.4,10.2995918]
[1749649704697,1.5973,2788.1,2786.4,19.28618858]
[1749649704858,0.1792,2786.8,2786.6,10.0]
[1749649705051,0.1792,2786.8,2786.7,8.62551005]
[1749649705313,1.6207,2788.4,2786.8,11.641]
[1749649705599,0.04,2788.9,2786.8,11.641]
[1749649705600,0.1792,2787.3,2787.1,10.0]
[1749649705905,0.1792,2787.2,2787.0,8.14795198]
[1749649706084,0.1792,2787.2,2787.1,10.0]
[1749649706658,4.228,2788.6,2787.1,10.0]
[1749649706659,1.5327,2788.6,2787.1,10.0]
[1749649706858,1.5327,2788.6,2787.5,10.0]
[1749649707055,0.28297,2788.5,2787.5,10.0]
[1749649707462,0.1792,2787.5,2786.9,10.0]
[1749649707659,0.1792,2787.0,2786.7,11.5507]
[1749649708103,0.1792,2787.0,2786.9,8.14795198]
[1749649708473,0.1792,2787.0,2786.9,18.14795198]
[1749649708676,0.1792,2787.0,2786.9,10.0]
[1749649709500,2.1168,2788.8,2787.1,3.58789266]
[1749649709702,1.5668,2788.7,2787.4,9.75495198]
[1749649709880,1.5668,2788.7,2787.8,10.0]
[1749649710461,1.5668,2788.7,2787.1,3.58783784]
[1749649710462,1.5668,2788.7,2787.0,2.06555807]
[1749649710674,1.5713,2788.5,2787.0,1.79455581]
[1749649710871,1.5713,2788.5,2787.1,10.0]
[1749649711316,1.5713,2788.5,2787.4,10.0]
[1749649712075,1.5713,2788.5,2787.6,8.14795198]
[1749649712409,1.5713,2788.5,2787.7,10.0]
[1749649713525,1.5713,2788.5,2787.6,13.37168921]
[1749649713526,1.5713,2788.5,2788.0,10.0]
[1749649713684,1.5713,2788.5,2787.6,23.37169475]
[1749649713884,1.5713,2788.5,2787.6,23.84925282]
[1749649714366,0.04,2788.9,2788.0,10.0]
[1749649714367,1.5214,2788.8,2788.0,10.0]
[1749649714632,0.04,2788.9,2788.5,8.14795198]
[1749649714982,0.04,2788.9,2788.6,10.0]
[1749649716230,0.04,2788.9,2788.3,8.14795198]
[1749649716428,0.04,2788.9,2788.3,13.66895198]
[1749649716927,0.04,2788.9,2788.5,10.0]
[1749649717082,0.04,2788.9,2788.7,10.0]
[1749649717483,0.04,2788.9,2788.4,10.0]
[1749649717716,0.04,2788.9,2788.2,1.6022]
[1749649717717,1.6108,2788.8,2788.2,1.6022]
[1749649718185,1.6108,2788.8,2788.2,1.95974449]
[1749649718586,1.6108,2788.8,2788.2,1.6022]
[1749649718883,1.6108,2788.8,2787.9,4.70055807]
[1749649718884,1.6108,2788.8,2787.9,7.1025]
[1749649719088,1.6108,2788.8,2788.0,18.14795198]
[1749649719284,0.04,2788.9,2788.0,8.62551005]
[1749649719515,0.04,2788.9,2788.3,18.14795198]
[1749649719727,0.04,2788.9,2788.4,10.0]
[1749649720021,0.04,2788.9,2788.2,10.0]
[1749649720434,0.04,2788.9,2788.0,10.47755807]
[1749649720641,1.5081,2788.4,2787.6,1.5356]
[1749649720931,1.5081,2788.4,2786.8,9.69955198]
[1749649721289,1.5081,2788.4,2787.2,8.14795198]
[1749649721495,1.5081,2788.4,2787.3,10.47755807]
[1749649721906,1.5081,2788.4,2787.3,10.0]
[1749649722306,1.5081,2788.4,2787.6,10.0]
[1749649722637,0.04,2788.9,2787.9,10.0]
[1749649722638,1.6451,2788.8,2787.9,10.0]
[1749649722935,1.6451,2788.8,2787.6,1.297]
[1749649722936,1.6451,2788.8,2788.1,19.71135198]
[1749649723244,0.04,2788.9,2788.1,19.71135198]
[1749649723245,0.04,2788.9,2788.1,24.41091005]
[1749649723444,0.04,2788.9,2788.1,24.40991005]
[1749649723589,0.04,2788.9,2788.1,23.93235198]
[1749649724460,0.04,2788.9,2788.1,4.221]
[1749649725419,1.5098,2788.8,2787.7,19.74855198]
[1749649725619,1.5098,2788.8,2787.9,10.0]
[1749649726665,1.5098,2788.8,2788.4,10.0]
[1749649727325,1.5098,2788.8,2788.1,4.22]
[1749649727326,1.5098,2788.8,2788.1,10.0]
[1749649727736,1.5098,2788.8,2787.8,5.99455807]
[1749649727737,1.5098,2788.8,2788.3,8.14795198]
[1749649727937,0.04,2788.9,2788.4,10.0]
[1749649728466,0.04,2788.9,2788.5,3.58614572]
[1749649728623,0.04,2788.9,2788.6,18.14795198]
[1749649729363,0.04,2788.9,2788.8,15.10057165]
[1749649729529,0.04,2788.9,2788.8,11.5148]
[1749649729927,1.6154,2789.8,2788.9,10.0]
[1749649730126,0.04,2789.9,2789.6,10.0]
[1749649730371,0.04,2789.9,2789.8,18.14795198]
[1749649730579,0.2192,2789.9,2789.8,18.14795198]
[1749649731023,0.2192,2789.9,2789.8,10.0]
[1749649731457,0.2192,2789.9,2789.4,0.1792]
[1749649731682,1.6175,2789.8,2788.8,0.1792]
[1749649731833,0.1792,2788.9,2788.4,1.4762]
[1749649732037,0.1792,2788.9,2788.6,10.0]
[1749649732225,0.1792,2788.9,2788.4,1.4762]
[1749649732226,0.0421301,2788.9,2788.4,11.4762]
[1749649732427,0.0421301,2788.9,2788.5,10.0]
[1749649732955,0.0421301,2788.9,2788.6,10.0]
[1749649733152,1.6175,2789.8,2788.7,3.58590024]
[1749649733468,0.1792,2789.2,2789.0,10.0]
[1749649734238,0.1792,2789.2,2788.7,4.3962]
[1749649734239,0.1792,2789.2,2788.7,0.1792]
[1749649734829,1.6175,2789.8,2788.6,8.14795198]
[1749649734830,0.1792,2788.9,2788.6,8.14795198]
[1749649736098,1.6175,2789.8,2788.6,8.14795198]
[1749649736099,1.6175,2789.8,2788.7,0.47755807]
[1749649736234,0.1792,2789.2,2788.7,0.65675807]
[1749649736634,0.1792,2789.2,2788.7,10.65675807]
[1749649736934,1.6175,2789.8,2789.0,11.6422]
[1749649736935,0.1792,2789.3,2789.0,11.6422]
[1749649737134,0.1792,2789.3,2789.2,18.14795198]
[1749649737479,0.1792,2789.5,2789.3,10.0]
[1749649738778,0.04,2789.9,2789.3,10.0]
[1749649738942,0.04,2789.9,2789.2,18.14795198]
[1749649738943,0.1792,2789.7,2789.2,8.32715198]
[1749649739142,0.1792,2789.7,2789.3,10.0]
[1749649740238,0.1792,2789.7,2789.5,8.14795198]
[1749649740454,0.04,2789.9,2789.5,8.14795198]
[1749649740455,0.04,2789.9,2789.8,13.58448634]
[1749649740653,0.04,2789.9,2789.8,28.33020005]
[1749649740860,0.04,2789.9,2789.8,31.36468639]
[1749649741299,0.04,2789.9,2789.8,31.91468639]
[1749649741764,0.04,2790.9,2790.5,10.0]
[1749649742101,0.1784,2790.8,2790.5,10.0]
[1749649742263,0.04,2790.9,2790.8,21.73115392]
[1749649742462,1.6396,2792.0,2791.0,9.805001]
[1749649742693,1.6396,2792.4,2791.8,10.0]
[1749649742893,0.1784,2792.0,2791.8,10.0]
[1749649743202,0.1784,2792.3,2791.8,1.8078]
[1749649743365,0.1784,2792.1,2791.6,5.5]
[1749649743568,1.5462,2792.8,2791.7,10.0]
[1749649743754,0.1784,2792.1,2791.8,0.55]
[1749649743946,1.5462,2792.8,2791.8,4.9394]
[1749649743947,0.1784,2792.3,2791.8,4.9394]
[1749649744182,1.5462,2792.8,2791.8,27.37847847]
[1749649744384,0.1784,2792.6,2791.8,29.50693654]
[1749649744689,0.1784,2792.6,2791.8,24.07003047]
[1749649745054,0.1784,2792.7,2791.8,24.54758854]
[1749649745249,1.5529,2793.2,2791.8,24.54758854]
[1749649745480,0.2184,2792.9,2792.2,10.55]
[1749649745687,0.2184,2792.9,2792.6,10.0]
[1749649746109,0.04,2792.9,2792.8,18.14795198]
[1749649746256,0.2184,2792.9,2792.8,10.0]
[1749649746454,0.04,2792.9,2792.8,10.0]
[1749649746716,0.04,2792.9,2792.8,14.76]
[1749649746871,0.04,2793.9,2793.3,3.57997226]
[1749649747079,0.04,2793.9,2793.6,8.14795198]
[1749649747273,0.04,2793.9,2793.7,10.0]
[1749649747274,0.2184,2793.9,2793.7,10.0]
[1749649747860,0.04,2793.9,2793.3,8.69795198]
[1749649748086,0.04,2793.9,2793.4,11.289]
[1749649748087,0.1784,2793.8,2793.4,11.289]
[1749649748294,0.04,2793.9,2793.5,0.1784]
[1749649748493,0.04,2793.9,2793.7,10.0]
[1749649748970,0.04,2793.9,2793.4,10.0]
[1749649749169,0.1784,2793.8,2793.3,0.1784]
[1749649749369,0.1784,2793.8,2793.2,16.044]
[1749649749370,0.04,2793.9,2793.7,10.0]
[1749649750376,0.04,2793.9,2793.6,11.288]
[1749649750911,0.04,2793.9,2793.5,0.1784]
[1749649751084,0.1784,2793.8,2793.3,0.1784]
[1749649751290,0.1784,2793.8,2793.2,11.288]
[1749649751291,0.1784,2793.6,2793.2,11.288]
[1749649751813,0.04,2793.9,2793.4,13.57981653]
[1749649751986,0.04,2793.9,2793.7,0.55]
[1749649752190,0.04,2793.9,2793.8,4.30775428]
[1749649752492,0.1784,2794.6,2793.9,10.55]
[1749649752802,0.1784,2794.6,2794.1,0.1784]
[1749649753007,0.1784,2794.6,2793.5,0.47755807]
[1749649753008,0.1784,2794.0,2793.7,15.492]
[1749649753179,0.1784,2794.0,2793.7,11.288]
[1749649753374,0.1784,2794.0,2793.6,1.288]
[1749649753703,0.1784,2794.0,2793.6,11.288]
[1749649753878,1.5175,2794.3,2793.0,1.5853]
[1749649754080,0.1784,2793.8,2793.3,0.1784]
[1749649754729,0.1784,2793.8,2793.3,10.1784]
[1749649755019,0.1784,2793.8,2793.4,0.55]
[1749649755177,1.5175,2794.3,2793.3,10.1784]
[1749649755178,1.5175,2794.3,2793.6,10.0]
[1749649755372,0.1784,2793.9,2793.6,10.0]
[1749649755578,0.1784,2793.7,2793.3,11.288]
[1749649756134,1.5175,2794.3,2793.3,11.288]
[1749649756290,0.1784,2793.8,2793.4,0.55]
[1749649756496,0.1784,2793.8,2793.6,10.0]
[1749649756920,1.5175,2794.3,2793.6,10.0]
[1749649758044,1.5104,2794.6,2793.9,10.0]
[1749649758205,1.5104,2794.6,2793.9,14.201]
[1749649758589,0.04,2794.9,2794.4,8.14795198]
[1749649758790,0.04,2794.9,2794.5,10.0]
[1749649759241,0.04,2794.9,2794.8,10.55]
[1749649759605,0.04,2794.9,2794.7,12.34795198]
[1749649759606,0.04,2794.9,2794.5,1.93585086]
[1749649759811,0.04,2794.9,2794.6,1.288]
[1749649760112,0.04,2794.9,2794.7,0.55]
[1749649760310,0.04,2794.9,2794.8,14.12807356]
[1749649760546,0.04,2794.9,2794.8,10.55]
[1749649760844,0.04,2794.9,2794.8,33.06869556]
[1749649760995,0.04,2795.9,2794.8,33.06869556]
[1749649760996,0.04,2795.9,2795.7,10.0]
[1749649761347,0.04,2796.9,2795.9,13.57657328]
[1749649761498,0.04,2796.9,2796.3,10.0]
[1749649761696,0.04,2796.9,2796.3,14.198]
[1749649761907,0.04,2796.9,2796.4,0.55]
[1749649762335,0.04,2796.9,2796.4,4.12591399]
[1749649762536,0.04,2796.9,2795.9,0.3658715]
[1749649762845,0.04,2796.9,2795.8,1.5267]
[1749649762846,1.6327,2796.8,2795.8,1.5267]
[1749649762999,1.6327,2796.8,2795.6,8.14795198]
[1749649763000,1.6327,2796.8,2795.6,10.0]
[1749649763671,1.6327,2796.8,2795.7,8.14795198]
[1749649763816,1.6327,2796.8,2795.9,10.0]
[1749649764014,1.6327,2796.8,2796.2,0.55]
[1749649764231,0.04,2796.9,2796.4,0.55]
[1749649764463,0.04,2796.9,2796.4,1.837]
[1749649764752,0.04,2796.9,2796.5,10.0]
[1749649765271,0.04,2796.9,2796.6,0.55]
[1749649765761,0.04,2796.9,2796.7,14.195]
[1749649765966,0.04,2796.9,2796.7,11.287]
[1749649766133,0.04,2796.9,2796.6,1.287]
[1749649766335,0.04,2796.9,2796.5,1.28]
[1749649766717,0.2184,2796.9,2796.5,1.28]
[1749649767417,0.2184,2796.9,2796.7,10.0]
[1749649768252,0.2184,2796.9,2796.5,1.28]
[1749649768562,0.2184,2796.9,2796.6,4.194]
[1749649769225,0.2184,2796.9,2796.4,10.1784]
[1749649769424,0.04,2796.9,2796.6,10.0]
[1749649769730,0.1784,2796.8,2796.6,10.0]
[1749649770314,0.04,2796.9,2796.5,1.279]
[1749649770514,0.04,2796.9,2796.5,11.4574]
[1749649770760,0.04,2796.9,2796.8,18.69795198]
[1749649771062,1.6601,2797.6,2796.8,18.69795198]
[1749649771063,1.6601,2797.6,2796.8,1.279]
[1749649771948,1.6601,2797.6,2796.6,1.279]
[1749649772149,1.6601,2797.6,2796.0,11.72447704]
[1749649772150,1.6601,2797.6,2796.1,10.0]
[1749649772354,1.6601,2797.6,2796.2,5.47]
[1749649772776,1.6601,2797.6,2796.5,18.14795198]
[1749649772958,1.6601,2797.6,2796.6,10.47755807]
[1749649773124,1.6601,2797.6,2796.6,11.75655807]
[1749649773625,1.6601,2797.6,2796.6,11.279]
[1749649774642,1.6601,2797.6,2796.6,1.279]
[1749649775046,8.14795198,2797.6,2796.6,1.279]
[1749649775366,1.6277,2797.2,2795.7,4.85590921]
[1749649775568,1.6277,2797.2,2795.8,12.4785]
[1749649775785,1.6277,2797.2,2796.1,3.57640999]
[1749649775942,1.6277,2797.2,2796.4,10.0]
[1749649776141,1.6277,2797.2,2796.5,0.47755807]
[1749649776371,1.6277,2797.2,2796.6,11.68435195]
[1749649776679,1.6277,2797.2,2796.7,4.05319187]
[1749649776826,1.5832,2797.5,2797.2,10.0]
[1749649777023,1.5832,2797.5,2796.8,14.739]
[1749649777222,0.04,2797.9,2796.8,14.739]
[1749649777223,1.6546,2797.8,2797.0,0.55]
[1749649777539,1.6546,2797.8,2797.1,1.08747836]
[1749649777754,1.6546,2797.8,2797.1,11.08747836]
[1749649777951,1.6546,2797.8,2797.1,0.60992029]
[1749649779063,1.6546,2797.8,2797.2,3.57494208]
[1749649779226,1.6546,2797.8,2797.3,8.69795198]
[1749649779427,0.04,2797.9,2797.4,0.40535195]
[1749649779724,0.04,2797.9,2797.0,1.5339]
[1749649779725,0.04,2797.9,2797.1,0.55]
[1749649779927,0.04,2797.9,2797.4,10.0]
[1749649780145,0.04,2797.9,2797.4,0.47755807]
[1749649780367,0.04,2797.9,2797.1,0.55]
[1749649780569,0.04,2797.9,2797.1,1.279]
[1749649780732,0.1784,2797.5,2797.1,11.279]
[1749649782346,1.5596,2797.4,2796.4,1.5719]
[1749649782539,1.5596,2797.4,2795.5,8.14795198]
[1749649782739,1.5596,2797.4,2795.8,8.14795198]
[1749649782976,1.5596,2797.4,2796.0,20.927882]
[1749649783178,1.5596,2797.4,2796.1,4.66255807]
[1749649783474,1.5596,2797.4,2796.6,10.55]
[1749649783665,1.5596,2797.4,2796.6,15.40474712]
[1749649783866,1.5596,2797.4,2796.7,0.47755807]
[1749649784378,1.575,2797.8,2796.9,10.55]
[1749649784681,1.575,2797.8,2796.9,18.31032681]
[1749649784908,1.575,2797.8,2796.9,14.735]
[1749649785263,1.575,2797.8,2796.9,18.31030938]
[1749649785485,1.575,2797.8,2796.9,14.735]
[1749649786088,1.575,2797.8,2796.9,14.185]
[1749649786588,1.575,2797.8,2797.0,1.02755807]
[1749649787115,1.575,2797.8,2797.4,0.55]
[1749649787410,1.575,2797.8,2797.4,1.02755807]
[1749649787605,1.575,2797.8,2797.2,10.0]
[1749649787767,1.575,2797.8,2797.2,10.47755807]
[1749649788465,1.575,2797.8,2797.3,4.1248537]
[1749649788703,0.04,2797.9,2797.3,4.1248537]
[1749649788704,0.04,2797.9,2797.6,10.0]
[1749649788906,0.04,2797.9,2797.4,8.14795198]
[1749649788907,0.04,2797.9,2797.5,10.0]
[1749649789410,0.04,2797.9,2797.5,11.278]
[1749649790123,0.04,2797.9,2797.8,10.0]
[1749649790507,0.04,2797.9,2797.8,10.55]
[1749649791262,0.04,2797.9,2797.7,10.55]
[1749649791599,1.5121,2798.7,2798.0,10.0]
[1749649791965,1.5121,2798.7,2797.8,10.55]
[1749649792398,0.1784,2798.1,2797.6,0.1784]
[1749649792812,1.5833,2798.0,2797.6,0.1784]
[1749649793108,1.5833,2798.0,2796.7,10.676125]
[1749649793277,1.5833,2798.0,2796.2,1.636]
[1749649793278,1.5833,2798.0,2797.1,0.47755807]
[1749649793465,1.5833,2798.0,2796.8,13.57545012]
[1749649793668,1.5833,2798.0,2796.9,10.0]
[1749649793868,1.5833,2798.0,2796.7,1.278]
[1749649794191,1.5833,2798.0,2796.9,10.0]
[1749649794380,1.5833,2798.0,2796.8,0.29847776]
[1749649794583,1.5681,2797.8,2796.8,20.29847776]
[1749649794786,1.5681,2797.8,2797.1,10.0]
[1749649795184,1.5681,2797.8,2797.3,10.0]
[1749649795515,1.41965127,2798.8,2797.5,10.0]
[1749649795516,1.6465,2798.1,2797.5,10.0]
[1749649795723,1.6465,2798.1,2797.6,10.0]
[1749649795876,1.6465,2798.1,2797.5,3.57462015]
[1749649795877,1.6465,2798.1,2797.5,14.18]
[1749649796073,1.6465,2798.1,2797.5,17.75454926]
[1749649796269,1.6465,2798.1,2797.9,10.0]
[1749649796470,1.5529,2798.8,2797.9,0.55]
[1749649796675,1.5529,2798.8,2798.1,10.0]
[1749649796874,0.04,2798.9,2798.1,10.0]
[1749649796875,0.04,2798.9,2798.2,2.1702]
[1749649797175,0.04,2798.9,2798.3,10.0]
[1749649797377,0.04,2798.9,2798.2,12.1702]
[1749649797997,0.04,2798.9,2798.2,15.74392575]
[1749649798196,0.04,2798.9,2798.2,12.1702]
[1749649798409,1.6357,2798.8,2798.2,10.55]
[1749649799417,1.6357,2798.8,2798.2,0.55]
[1749649799634,1.6357,2798.8,2798.2,1.271]
[1749649800313,1.6357,2798.8,2797.2,1.98358225]
[1749649800512,1.6357,2798.8,2797.2,10.5790923]
[1749649800831,1.6357,2798.8,2797.1,5.449]
[1749649801122,1.6357,2798.8,2797.2,0.44755807]
[1749649801333,1.6357,2798.8,2797.5,10.0]
[1749649801634,1.6357,2798.8,2797.4,9.253]
[1749649801797,1.6357,2798.8,2797.5,10.0]
[1749649801988,1.5318,2798.5,2797.4,9.253]
[1749649802190,10.0,2798.6,2797.1,11.271]
[1749649802191,1.5318,2798.3,2797.1,11.271]
[1749649802404,1.5318,2798.3,2797.1,11.56944575]
[1749649802611,1.5318,2798.3,2797.1,1.56944575]
[1749649802944,0.1784,2797.3,2797.1,1.56944575]
[1749649803088,1.36737255,2797.4,2797.1,1.56944575]
[1749649803287,0.1784,2797.4,2797.2,0.62994458]
[1749649803532,1.311,2798.9,2797.5,20.0]
[1749649803533,0.04,2798.9,2797.5,20.0]
[1749649803699,0.1784,2798.0,2797.5,10.0]
[1749649803898,0.1784,2798.0,2797.5,10.1784]
[1749649804299,0.1784,2798.0,2797.5,0.1784]
[1749649804529,0.1784,2798.0,2797.5,0.56372766]
[1749649804925,0.55,2798.8,2797.5,0.38532766]
[1749649805122,0.1784,2797.6,2797.2,10.0]
[1749649805369,0.1784,2797.6,2797.1,15.32290207]
[1749649805667,0.55,2798.8,2797.3,10.0]
[1749649805821,0.1784,2797.8,2797.3,10.1784]
[1749649806022,0.1784,2797.8,2797.2,4.176]
[1749649806023,1.6565,2798.3,2797.6,10.0]
[1749649806220,1.6565,2798.3,2797.7,3.57431021]
[1749649806437,0.1784,2798.2,2797.7,10.1784]
[1749649806845,1.6565,2798.3,2797.0,7.5231]
[1749649807166,8.18795198,2798.9,2797.2,0.1784]
[1749649807167,1.5025,2797.6,2797.2,0.1784]
[1749649807329,0.1784,2797.5,2797.1,10.0]
[1749649807535,0.1784,2797.5,2797.3,0.00173542]
[1749649807728,1.5025,2797.6,2797.3,0.00173542]
[1749649807972,1.5025,2797.6,2797.3,10.00173542]
[1749649808153,1.5806,2797.9,2797.6,10.0]
[1749649808326,1.5806,2797.9,2797.5,0.1784]
[1749649809015,1.5806,2797.9,2797.3,10.00173542]
[1749649809016,0.1784,2797.7,2797.3,10.00173542]
[1749649809455,0.1784,2797.7,2797.3,0.00173542]
[1749649809634,1.523,2797.8,2797.3,0.00173542]
[1749649810561,8.14795198,2798.1,2796.4,0.1784]
[1749649810562,1.523,2797.2,2796.4,0.1784]
[1749649810764,0.1784,2796.9,2796.4,0.1784]
[1749649811573,1.523,2797.2,2796.4,3.57594933]
[1749649811725,1.5094,2796.8,2796.4,0.62595807]
[1749649811933,1.5094,2796.8,2796.4,0.1784]
[1749649812463,1.5094,2796.8,2796.1,0.04]
[1749649812778,1.5094,2796.8,2796.2,0.2985418]
[1749649813826,1.5094,2796.8,2796.3,3.57614319]
[1749649814125,1.5094,2796.8,2796.2,10.2985418]
[1749649814542,1.5094,2796.8,2796.3,0.44755807]
[1749649814751,10.0,2797.9,2796.3,0.44755807]
[1749649814752,1.5088,2797.8,2796.6,10.0]
[1749649815157,1.5088,2797.8,2796.3,14.02364641]
[1749649815434,1.5088,2797.6,2796.3,10.44755807]
[1749649815638,1.5088,2797.6,2796.8,10.0]
[1749649815867,1.5088,2797.6,2796.7,10.0]
[1749649816024,1.5088,2797.6,2796.7,13.575547]
[1749649816221,1.5088,2797.6,2797.1,10.0]
[1749649816427,1.5088,2797.6,2797.1,13.57509214]
[1749649816679,1.5088,2797.6,2797.1,10.0]
[1749649816972,1.6399,2798.7,2797.3,10.0]
[1749649818033,1.5408,2798.5,2796.9,10.0]
[1749649818247,1.5408,2798.5,2797.1,10.0]
[1749649818564,8.14795198,2798.6,2797.1,10.0]
[1749649818565,1.5408,2798.3,2797.1,10.0]
[1749649818933,1.5408,2798.3,2797.1,13.575086]
[1749649819132,1.5408,2798.3,2797.1,10.0]
[1749649819370,1.5408,2798.3,2797.5,10.0]
[1749649819529,1.5408,2798.3,2797.5,13.57454601]
[1749649819730,1.5408,2798.3,2797.5,10.0]
[1749649820435,1.5408,2798.3,2797.3,1.271]
[1749649820762,1.6443,2798.1,2796.8,1.271]